[Event "*** SCC Grand Prix: Titled Tuesday Blitz"]
[Site "Chess.com"]
[Date "2020.08.04"]
[Round "6"]
[White "SantoBlue"]
[Black "abykhovsky"]
[Result "1-0"]
[WhiteElo "2921"]
[BlackElo "2769"]
[TimeControl "180+1"]
[EndTime "14:47:52 PDT"]
[Termination "SantoBlue won by checkmate"]

1. e4 {[%clk 0:03:00.9]} 1... c5 {[%clk 0:02:59.7]} 2. Nf3 {[%clk 0:02:57.7]}
2... e6 {[%clk 0:03:00]} 3. Nc3 {[%clk 0:02:57]} 3... a6 {[%clk 0:02:59]} 4. g3
{[%clk 0:02:51.5]} 4... b5 {[%clk 0:02:59.1]} 5. d4 {[%clk 0:02:51.5]} 5... Bb7
{[%clk 0:03:00]} 6. Bg2 {[%clk 0:02:51.2]} 6... cxd4 {[%clk 0:02:55.1]} 7. Nxd4
{[%clk 0:02:51.3]} 7... Nf6 {[%clk 0:02:55.1]} 8. a3 {[%clk 0:02:46.2]} 8... d6
{[%clk 0:02:54.6]} 9. O-O {[%clk 0:02:46.3]} 9... Nbd7 {[%clk 0:02:55.1]} 10.
Nb3 {[%clk 0:02:28.5]} 10... Qc7 {[%clk 0:02:47.5]} 11. f4 {[%clk 0:02:27.8]}
11... Be7 {[%clk 0:02:47.6]} 12. g4 {[%clk 0:02:18.6]} 12... h6 {[%clk
0:02:41.4]} 13. Be3 {[%clk 0:02:16.2]} 13... Nb6 {[%clk 0:02:40]} 14. Na5 {[%clk
0:02:01.3]} 14... Nc4 {[%clk 0:02:40.1]} 15. Nxc4 {[%clk 0:02:01]} 15... Qxc4
{[%clk 0:02:40.2]} 16. Qf3 {[%clk 0:01:45.3]} 16... O-O {[%clk 0:02:27.5]} 17.
Rad1 {[%clk 0:01:40.4]} 17... Rac8 {[%clk 0:02:20.6]} 18. g5 {[%clk 0:01:33.7]}
18... hxg5 {[%clk 0:02:19.4]} 19. fxg5 {[%clk 0:01:33.8]} 19... Nd7 {[%clk
0:02:20]} 20. Qh5 {[%clk 0:01:26.9]} 20... Ne5 {[%clk 0:01:24.3]} 21. Rf4 {[%clk
0:01:24.9]} 21... Ng6 {[%clk 0:01:24]} 22. Rf3 {[%clk 0:01:24]} 22... d5 {[%clk
0:01:20.3]} 23. Rh3 {[%clk 0:01:20.8]} 23... Rfd8 {[%clk 0:01:19.7]} 24. Qh7+
{[%clk 0:01:20.7]} 24... Kf8 {[%clk 0:01:19.9]} 25. Qh8+ {[%clk 0:01:20]} 25...
Nxh8 {[%clk 0:01:19.4]} 26. Rxh8# {[%clk 0:01:19.8]} 1-0

[Event "*** SCC Grand Prix: Titled Tuesday Blitz"]
[Site "Chess.com"]
[Date "2020.08.04"]
[Round "6"]
[White "FMJoseHerrera"]
[Black "BlueWizzard"]
[Result "0-1"]
[WhiteElo "2502"]
[BlackElo "2706"]
[TimeControl "180+1"]
[EndTime "14:48:16 PDT"]
[Termination "BlueWizzard won by resignation"]

1. f3 {[%clk 0:03:00.9]} 1... c6 {[%clk 0:02:58.6]} 2. g3 {[%clk 0:03:00.8]}
2... Qb6 {[%clk 0:02:58.6]} 3. d4 {[%clk 0:02:52.8]} 3... Nf6 {[%clk 0:02:54.5]}
4. Kf2 {[%clk 0:02:49.1]} 4... e5 {[%clk 0:02:54.1]} 5. e3 {[%clk 0:02:46.3]}
5... e4 {[%clk 0:02:51.1]} 6. f4 {[%clk 0:02:33.3]} 6... d5 {[%clk 0:02:47.3]}
7. h3 {[%clk 0:02:31.5]} 7... c5 {[%clk 0:02:44.6]} 8. Ne2 {[%clk 0:02:29.7]}
8... Nc6 {[%clk 0:02:43.8]} 9. Kg2 {[%clk 0:02:25.6]} 9... Be6 {[%clk
0:02:38.9]} 10. c3 {[%clk 0:02:02.2]} 10... h6 {[%clk 0:02:35.9]} 11. dxc5
{[%clk 0:02:02.1]} 11... Bxc5 {[%clk 0:02:35.2]} 12. Nd4 {[%clk 0:02:03]} 12...
g5 {[%clk 0:02:32.2]} 13. f5 {[%clk 0:01:48.9]} 13... Bd7 {[%clk 0:02:23.6]} 14.
Nd2 {[%clk 0:01:47.9]} 14... Nxd4 {[%clk 0:02:12.7]} 15. cxd4 {[%clk 0:01:42.4]}
15... Bd6 {[%clk 0:02:12.8]} 16. g4 {[%clk 0:01:36]} 16... h5 {[%clk 0:02:11.7]}
17. Be2 {[%clk 0:01:36.3]} 17... hxg4 {[%clk 0:02:09.3]} 18. hxg4 {[%clk
0:01:34.4]} 18... O-O-O {[%clk 0:02:02.2]} 19. Nb3 {[%clk 0:01:32.8]} 19... Bc7
{[%clk 0:01:56.1]} 20. Bd2 {[%clk 0:01:31.8]} 20... Qd6 {[%clk 0:01:54.1]} 21.
Qg1 {[%clk 0:01:08.6]} 21... Qg3+ {[%clk 0:01:43.3]} 22. Kf1 {[%clk 0:01:08.1]}
22... Rxh1 {[%clk 0:01:41.3]} 23. Qxh1 {[%clk 0:01:09]} 23... Nxg4 {[%clk
0:01:41.7]} 24. Bxg4 {[%clk 0:01:05.9]} 24... Qxg4 {[%clk 0:01:40.6]} 25. Rc1
{[%clk 0:01:06.8]} 25... Bb5+ {[%clk 0:01:37.8]} 0-1

[Event "*** SCC Grand Prix: Titled Tuesday Blitz"]
[Site "Chess.com"]
[Date "2020.08.04"]
[Round "6"]
[White "mishanick"]
[Black "RobertoJBM"]
[Result "1-0"]
[WhiteElo "2933"]
[BlackElo "2703"]
[TimeControl "180+1"]
[EndTime "14:48:29 PDT"]
[Termination "mishanick won by resignation"]

1. d4 {[%clk 0:02:48.6]} 1... d5 {[%clk 0:02:59.5]} 2. c4 {[%clk 0:02:47.1]}
2... c6 {[%clk 0:02:59.6]} 3. Nf3 {[%clk 0:02:47.3]} 3... Nf6 {[%clk 0:02:59.5]}
4. Nc3 {[%clk 0:02:47.5]} 4... dxc4 {[%clk 0:02:59.2]} 5. a4 {[%clk 0:02:45.8]}
5... Bf5 {[%clk 0:02:59]} 6. Ne5 {[%clk 0:02:41.5]} 6... Nbd7 {[%clk 0:02:59.2]}
7. Nxc4 {[%clk 0:02:42.1]} 7... Nb6 {[%clk 0:02:55.8]} 8. e3 {[%clk 0:02:37.5]}
8... e6 {[%clk 0:02:48.9]} 9. Ne5 {[%clk 0:02:35.6]} 9... a5 {[%clk 0:02:45.9]}
10. g4 {[%clk 0:02:35.4]} 10... Bg6 {[%clk 0:02:39.4]} 11. h4 {[%clk 0:02:35.7]}
11... Nfd7 {[%clk 0:02:24.2]} 12. Nxd7 {[%clk 0:02:27.8]} 12... Nxd7 {[%clk
0:02:12.9]} 13. h5 {[%clk 0:02:27.6]} 13... Bxh5 {[%clk 0:02:00.3]} 14. gxh5
{[%clk 0:02:26.2]} 14... Nf6 {[%clk 0:01:58.1]} 15. Qf3 {[%clk 0:02:25.4]} 15...
Bb4 {[%clk 0:01:57.4]} 16. h6 {[%clk 0:02:21.1]} 16... g6 {[%clk 0:01:57.1]} 17.
Bd2 {[%clk 0:02:21.6]} 17... O-O {[%clk 0:01:56.1]} 18. Bc4 {[%clk 0:02:21.3]}
18... Qe7 {[%clk 0:01:55.8]} 19. e4 {[%clk 0:02:20.2]} 19... Nd7 {[%clk
0:01:53.7]} 20. Rd1 {[%clk 0:02:16.9]} 20... Rad8 {[%clk 0:01:51.6]} 21. Rg1
{[%clk 0:02:16.6]} 21... Nb6 {[%clk 0:01:51.4]} 22. Bb3 {[%clk 0:02:14.3]} 22...
Rxd4 {[%clk 0:01:50.3]} 23. Bg5 {[%clk 0:02:12.3]} 23... Rxd1+ {[%clk
0:01:49.8]} 24. Kxd1 {[%clk 0:02:13.2]} 24... f6 {[%clk 0:01:49.9]} 25. Be3
{[%clk 0:02:12.5]} 25... Nd7 {[%clk 0:01:48.5]} 26. Kc2 {[%clk 0:02:12.2]} 26...
Nc5 {[%clk 0:01:46.5]} 27. Bxc5 {[%clk 0:02:11.7]} 27... Bxc5 {[%clk 0:01:46.8]}
28. Rd1 {[%clk 0:02:10.2]} 28... Bd6 {[%clk 0:01:39.9]} 29. Qg4 {[%clk 0:02:10]}
29... f5 {[%clk 0:01:27.1]} 30. exf5 {[%clk 0:02:09.6]} 30... Rxf5 {[%clk
0:01:27.9]} 31. Ne4 {[%clk 0:02:09.6]} 31... Be5 {[%clk 0:01:25.4]} 32. Qe2
{[%clk 0:02:06.6]} 32... Kf8 {[%clk 0:01:22.2]} 33. Kb1 {[%clk 0:02:05.2]} 33...
Qh4 {[%clk 0:01:19.1]} 34. Qd3 {[%clk 0:02:01]} 34... Rf4 {[%clk 0:01:14.3]} 35.
f3 {[%clk 0:02:00.5]} 35... Qe7 {[%clk 0:01:11.8]} 36. Qe3 {[%clk 0:01:52.5]}
36... Rh4 {[%clk 0:00:51.7]} 37. Nc5 {[%clk 0:01:50.5]} 37... Ke8 {[%clk
0:00:45.4]} 38. Qxe5 {[%clk 0:01:48.9]} 1-0

[Event "*** SCC Grand Prix: Titled Tuesday Blitz"]
[Site "Chess.com"]
[Date "2020.08.04"]
[Round "6"]
[White "AvitalBor"]
[Black "TST2014"]
[Result "1-0"]
[WhiteElo "2760"]
[BlackElo "2530"]
[TimeControl "180+1"]
[EndTime "14:48:29 PDT"]
[Termination "AvitalBor won by resignation"]

1. e4 {[%clk 0:03:00.9]} 1... c5 {[%clk 0:02:59.5]} 2. c3 {[%clk 0:03:00.7]}
2... Nf6 {[%clk 0:02:59]} 3. e5 {[%clk 0:03:01.1]} 3... Nd5 {[%clk 0:02:58.8]}
4. d4 {[%clk 0:03:02]} 4... cxd4 {[%clk 0:02:59]} 5. cxd4 {[%clk 0:03:02.9]}
5... Nc6 {[%clk 0:02:58.2]} 6. Nf3 {[%clk 0:03:03.8]} 6... d6 {[%clk 0:02:58.3]}
7. Bc4 {[%clk 0:03:04.4]} 7... Nb6 {[%clk 0:02:57.2]} 8. Bb5 {[%clk 0:03:04.7]}
8... dxe5 {[%clk 0:02:57.4]} 9. Nxe5 {[%clk 0:03:05.6]} 9... Bd7 {[%clk
0:02:57.8]} 10. Nxd7 {[%clk 0:03:06.3]} 10... Qxd7 {[%clk 0:02:58.2]} 11. Nc3
{[%clk 0:03:07.2]} 11... e6 {[%clk 0:02:56.3]} 12. O-O {[%clk 0:03:07.8]} 12...
Be7 {[%clk 0:02:44.5]} 13. Qg4 {[%clk 0:03:08.2]} 13... g6 {[%clk 0:02:44]} 14.
Rd1 {[%clk 0:03:05.2]} 14... h5 {[%clk 0:02:27.3]} 15. Qf3 {[%clk 0:03:01.4]}
15... a6 {[%clk 0:02:23.7]} 16. Bxc6 {[%clk 0:02:46.6]} 16... Qxc6 {[%clk
0:02:21.1]} 17. d5 {[%clk 0:02:47]} 17... Nxd5 {[%clk 0:02:16]} 18. Nxd5 {[%clk
0:02:46.6]} 18... exd5 {[%clk 0:02:16.4]} 19. Re1 {[%clk 0:02:46.9]} 19... Kf8
{[%clk 0:02:05.9]} 20. Be3 {[%clk 0:02:45.5]} 20... Bf6 {[%clk 0:02:01.8]} 21.
Rac1 {[%clk 0:02:44.7]} 21... Qe6 {[%clk 0:01:11.9]} 22. Bc5+ {[%clk 0:02:41.1]}
22... Kg7 {[%clk 0:01:11.1]} 23. Rxe6 {[%clk 0:02:40.3]} 23... fxe6 {[%clk
0:01:10.9]} 24. Bd4 {[%clk 0:02:31.8]} 24... Bxd4 {[%clk 0:01:00.9]} 25. Rc7+
{[%clk 0:02:31.1]} 25... Kh6 {[%clk 0:00:57.2]} 26. Qf4+ {[%clk 0:02:31.3]}
26... g5 {[%clk 0:00:57.7]} 27. Qxd4 {[%clk 0:02:31.5]} 27... Rhg8 {[%clk
0:00:54.8]} 28. Qf6+ {[%clk 0:02:21.1]} 28... Rg6 {[%clk 0:00:54]} 29. Qe7
{[%clk 0:02:21]} 29... g4 {[%clk 0:00:51.8]} 30. Rxb7 {[%clk 0:02:11.9]} 30...
Rc8 {[%clk 0:00:47.9]} 31. g3 {[%clk 0:02:08.6]} 31... Rc2 {[%clk 0:00:45.4]}
32. Kf1 {[%clk 0:02:05.2]} 32... Rc1+ {[%clk 0:00:39.9]} 33. Kg2 {[%clk
0:02:05.4]} 33... Rc2 {[%clk 0:00:39.9]} 34. Rb6 {[%clk 0:02:05.5]} 34... a5
{[%clk 0:00:35.9]} 35. Qf8+ {[%clk 0:02:05.1]} 35... Kh7 {[%clk 0:00:33.2]} 36.
Rb7+ {[%clk 0:02:04.4]} 36... Rc7 {[%clk 0:00:33.6]} 37. Rxc7+ {[%clk
0:02:04.5]} 1-0

[Event "*** SCC Grand Prix: Titled Tuesday Blitz"]
[Site "Chess.com"]
[Date "2020.08.04"]
[Round "6"]
[White "Sam_ChessMood"]
[Black "LyonBeast"]
[Result "0-1"]
[WhiteElo "2805"]
[BlackElo "3028"]
[TimeControl "180+1"]
[EndTime "14:48:31 PDT"]
[Termination "LyonBeast won by resignation"]

1. e4 {[%clk 0:03:00.9]} 1... c6 {[%clk 0:02:58.7]} 2. Nf3 {[%clk 0:02:58.1]}
2... d5 {[%clk 0:02:58.8]} 3. d3 {[%clk 0:02:58.5]} 3... dxe4 {[%clk 0:02:58.4]}
4. dxe4 {[%clk 0:02:58.7]} 4... Qxd1+ {[%clk 0:02:58.9]} 5. Kxd1 {[%clk
0:02:59.2]} 5... g6 {[%clk 0:02:56.7]} 6. Nfd2 {[%clk 0:02:45.6]} 6... Bg7
{[%clk 0:02:53.5]} 7. f3 {[%clk 0:02:41.7]} 7... Nf6 {[%clk 0:02:38.8]} 8. Nc4
{[%clk 0:02:39.8]} 8... O-O {[%clk 0:02:38.4]} 9. Be3 {[%clk 0:02:37.7]} 9...
Rd8+ {[%clk 0:02:33]} 10. Bd3 {[%clk 0:02:36.2]} 10... Ne8 {[%clk 0:02:26.9]}
11. Nc3 {[%clk 0:02:01.9]} 11... Be6 {[%clk 0:02:23.5]} 12. Ke2 {[%clk
0:01:57.5]} 12... Nd6 {[%clk 0:02:17.6]} 13. Nxd6 {[%clk 0:01:34.5]} 13... exd6
{[%clk 0:02:18.5]} 14. Kf2 {[%clk 0:01:28.4]} 14... Nd7 {[%clk 0:02:09.7]} 15.
a4 {[%clk 0:01:27]} 15... a5 {[%clk 0:02:02.1]} 16. Rhd1 {[%clk 0:01:22.9]}
16... Nc5 {[%clk 0:01:56.4]} 17. Be2 {[%clk 0:01:17.9]} 17... f5 {[%clk
0:01:55.5]} 18. Bd4 {[%clk 0:00:48.3]} 18... fxe4 {[%clk 0:01:53.3]} 19. Nxe4
{[%clk 0:00:42.4]} 19... Nxe4+ {[%clk 0:01:53]} 20. fxe4 {[%clk 0:00:42.6]}
20... Bxd4+ {[%clk 0:01:45.8]} 21. Rxd4 {[%clk 0:00:42.4]} 21... Kf7 {[%clk
0:01:46.5]} 22. Rad1 {[%clk 0:00:40.3]} 22... Ke7 {[%clk 0:01:46.5]} 23. Ke3
{[%clk 0:00:40.6]} 23... Rd7 {[%clk 0:01:40.2]} 24. Bc4 {[%clk 0:00:34.4]} 24...
c5 {[%clk 0:01:38.3]} 0-1

[Event "*** SCC Grand Prix: Titled Tuesday Blitz"]
[Site "Chess.com"]
[Date "2020.08.04"]
[Round "6"]
[White "DishonorOnYourCow"]
[Black "chessvr"]
[Result "1-0"]
[WhiteElo "2278"]
[BlackElo "2100"]
[TimeControl "180+1"]
[EndTime "14:48:33 PDT"]
[Termination "DishonorOnYourCow won by resignation"]

1. d4 {[%clk 0:03:00.9]} 1... Nf6 {[%clk 0:02:57.3]} 2. c4 {[%clk 0:03:00.3]}
2... c5 {[%clk 0:02:56.5]} 3. d5 {[%clk 0:03:00.1]} 3... b5 {[%clk 0:02:57.1]}
4. cxb5 {[%clk 0:03:00]} 4... a6 {[%clk 0:02:57.7]} 5. bxa6 {[%clk 0:03:00.9]}
5... g6 {[%clk 0:02:57.6]} 6. Nc3 {[%clk 0:03:00.1]} 6... Bg7 {[%clk 0:02:57.7]}
7. Nf3 {[%clk 0:03:00.1]} 7... Bxa6 {[%clk 0:02:57.9]} 8. e4 {[%clk 0:03:00.4]}
8... Bxf1 {[%clk 0:02:56.4]} 9. Kxf1 {[%clk 0:03:01.3]} 9... d6 {[%clk
0:02:52.5]} 10. g3 {[%clk 0:03:01.3]} 10... O-O {[%clk 0:02:51.8]} 11. Kg2
{[%clk 0:03:01.5]} 11... Ra6 {[%clk 0:02:50.8]} 12. a4 {[%clk 0:02:59.6]} 12...
Nfd7 {[%clk 0:02:43.6]} 13. Qc2 {[%clk 0:02:57.1]} 13... Qa5 {[%clk 0:01:57.3]}
14. Nd2 {[%clk 0:02:50.6]} 14... Ne5 {[%clk 0:01:53.3]} 15. Nb5 {[%clk
0:02:26.3]} 15... Rb6 {[%clk 0:01:45.2]} 16. f4 {[%clk 0:01:51.6]} 16... Rxb5
{[%clk 0:01:44]} 17. axb5 {[%clk 0:01:50.5]} 17... Qxa1 {[%clk 0:01:43.1]} 18.
fxe5 {[%clk 0:01:51]} 18... Bxe5 {[%clk 0:01:42.4]} 19. Nc4 {[%clk 0:01:51.1]}
19... Nd7 {[%clk 0:01:38.2]} 20. Bh6 {[%clk 0:01:49.1]} 20... Qa8 {[%clk
0:01:29.1]} 21. Bxf8 {[%clk 0:01:48.2]} 21... Kxf8 {[%clk 0:01:29.2]} 22. b6
{[%clk 0:01:43.9]} 22... Bd4 {[%clk 0:01:21.6]} 23. Qb3 {[%clk 0:01:41.8]} 23...
Qb7 {[%clk 0:01:20.3]} 24. Ra1 {[%clk 0:01:39.1]} 24... Nf6 {[%clk 0:01:14.4]}
25. Ra7 {[%clk 0:01:37.2]} 25... Qb8 {[%clk 0:01:13.3]} 26. Qa4 {[%clk
0:01:30.2]} 26... Nxe4 {[%clk 0:00:54.6]} 27. Ra8 {[%clk 0:01:28.9]} 27... Qxa8
{[%clk 0:00:52.7]} 28. Qxa8+ {[%clk 0:01:29.8]} 28... Kg7 {[%clk 0:00:53]} 29.
b7 {[%clk 0:01:30.2]} 29... e6 {[%clk 0:00:53]} 30. b8=Q {[%clk 0:01:30.2]}
30... exd5 {[%clk 0:00:53.3]} 31. Qxd5 {[%clk 0:01:28.8]} 31... Nf6 {[%clk
0:00:52]} 32. Qdxd6 {[%clk 0:01:27.4]} 32... Ne8 {[%clk 0:00:51.6]} 33. Qxe8
{[%clk 0:01:25.9]} 1-0

[Event "*** SCC Grand Prix: Titled Tuesday Blitz"]
[Site "Chess.com"]
[Date "2020.08.04"]
[Round "6"]
[White "Zubrrr"]
[Black "eightbyeightchess"]
[Result "1-0"]
[WhiteElo "2642"]
[BlackElo "2428"]
[TimeControl "180+1"]
[EndTime "14:48:42 PDT"]
[Termination "Zubrrr won by checkmate"]

1. c4 {[%clk 0:02:50.4]} 1... c6 {[%clk 0:02:53.7]} 2. g3 {[%clk 0:02:50.2]}
2... d5 {[%clk 0:02:52.8]} 3. Bg2 {[%clk 0:02:50.8]} 3... Nf6 {[%clk 0:02:53]}
4. Nf3 {[%clk 0:02:50.7]} 4... Bf5 {[%clk 0:02:51.5]} 5. O-O {[%clk 0:02:50.4]}
5... e6 {[%clk 0:02:52]} 6. b3 {[%clk 0:02:49.8]} 6... Bc5 {[%clk 0:02:51.3]} 7.
Bb2 {[%clk 0:02:49.2]} 7... O-O {[%clk 0:02:51.1]} 8. d3 {[%clk 0:02:48.3]} 8...
dxc4 {[%clk 0:02:50.1]} 9. bxc4 {[%clk 0:02:48]} 9... Nbd7 {[%clk 0:02:35.4]}
10. Nc3 {[%clk 0:02:37.8]} 10... Qe7 {[%clk 0:02:11.2]} 11. Rb1 {[%clk
0:02:34.3]} 11... Rfd8 {[%clk 0:02:09.6]} 12. Qc2 {[%clk 0:02:27.3]} 12... Rac8
{[%clk 0:01:52]} 13. Ba1 {[%clk 0:02:09.3]} 13... b5 {[%clk 0:01:50.9]} 14. cxb5
{[%clk 0:01:56]} 14... cxb5 {[%clk 0:01:51.8]} 15. Rxb5 {[%clk 0:01:56]} 15...
Nb6 {[%clk 0:01:46.5]} 16. Qb3 {[%clk 0:01:39.2]} 16... e5 {[%clk 0:00:55.6]}
17. Ng5 {[%clk 0:01:31.1]} 17... Bd7 {[%clk 0:00:49.2]} 18. Ra5 {[%clk
0:01:25.7]} 18... Bc6 {[%clk 0:00:47.4]} 19. Rxc5 {[%clk 0:01:14.1]} 19... Qxc5
{[%clk 0:00:45.8]} 20. Nxf7 {[%clk 0:01:11.5]} 20... Bxg2 {[%clk 0:00:33.7]} 21.
Nh6+ {[%clk 0:01:10.8]} 21... Kh8 {[%clk 0:00:30.6]} 22. Qg8+ {[%clk 0:01:09.9]}
22... Rxg8 {[%clk 0:00:29.1]} 23. Nf7# {[%clk 0:01:10.8]} 1-0

[Event "*** SCC Grand Prix: Titled Tuesday Blitz"]
[Site "Chess.com"]
[Date "2020.08.04"]
[Round "6"]
[White "g2_g3"]
[Black "DrMamaliga"]
[Result "1-0"]
[WhiteElo "2034"]
[BlackElo "2156"]
[TimeControl "180+1"]
[EndTime "14:48:46 PDT"]
[Termination "g2_g3 won by resignation"]

1. d4 {[%clk 0:03:00.9]} 1... Nf6 {[%clk 0:02:59.7]} 2. Nf3 {[%clk 0:02:59.9]}
2... c5 {[%clk 0:02:58.7]} 3. e3 {[%clk 0:02:59]} 3... cxd4 {[%clk 0:02:57.9]}
4. exd4 {[%clk 0:02:59]} 4... d5 {[%clk 0:02:58.1]} 5. Bd3 {[%clk 0:02:58.9]}
5... Nc6 {[%clk 0:02:55.2]} 6. c3 {[%clk 0:02:55.8]} 6... Bg4 {[%clk 0:02:55.7]}
7. O-O {[%clk 0:02:54]} 7... e6 {[%clk 0:02:55.1]} 8. Qb3 {[%clk 0:02:43.6]}
8... Qc8 {[%clk 0:02:55]} 9. Ne5 {[%clk 0:02:38.2]} 9... Bh5 {[%clk 0:02:51.8]}
10. Nxc6 {[%clk 0:02:37.1]} 10... bxc6 {[%clk 0:02:51.7]} 11. c4 {[%clk
0:02:22.2]} 11... Bg6 {[%clk 0:02:35.9]} 12. cxd5 {[%clk 0:02:06.9]} 12... Bxd3
{[%clk 0:02:34.5]} 13. Qxd3 {[%clk 0:02:02.6]} 13... cxd5 {[%clk 0:02:34.5]} 14.
Bg5 {[%clk 0:01:57.3]} 14... Be7 {[%clk 0:02:33.9]} 15. Qb5+ {[%clk 0:01:29.5]}
15... Qd7 {[%clk 0:02:33]} 16. Nc3 {[%clk 0:01:28.6]} 16... O-O {[%clk
0:02:15.7]} 17. Qxd7 {[%clk 0:01:27.5]} 17... Nxd7 {[%clk 0:02:11.4]} 18. Bxe7
{[%clk 0:01:27.4]} 18... Rfb8 {[%clk 0:02:12.1]} 19. b3 {[%clk 0:01:21.8]} 19...
Rc8 {[%clk 0:02:11.5]} 20. Rac1 {[%clk 0:01:20.2]} 20... Rc7 {[%clk 0:02:09.5]}
21. Na4 {[%clk 0:01:17.8]} 21... Rac8 {[%clk 0:02:07.5]} 22. Rxc7 {[%clk
0:01:16.1]} 22... Rxc7 {[%clk 0:02:08.4]} 23. Nc5 {[%clk 0:01:14.2]} 23... Nb6
{[%clk 0:02:04.1]} 24. Bd8 {[%clk 0:01:09.7]} 24... Rc6 {[%clk 0:02:03.1]} 25.
Bxb6 {[%clk 0:01:04.6]} 25... axb6 {[%clk 0:02:04]} 26. Na4 {[%clk 0:01:04.5]}
26... f6 {[%clk 0:01:59.3]} 27. g3 {[%clk 0:00:57.4]} 27... e5 {[%clk
0:01:58.7]} 28. Rd1 {[%clk 0:00:53.8]} 28... e4 {[%clk 0:01:51.9]} 29. Kf1
{[%clk 0:00:49.3]} 29... f5 {[%clk 0:01:51.5]} 30. Ke2 {[%clk 0:00:48.6]} 30...
Rc2+ {[%clk 0:01:50.3]} 31. Rd2 {[%clk 0:00:48.2]} 31... Rc6 {[%clk 0:01:50.5]}
32. Kd1 {[%clk 0:00:46.8]} 32... g5 {[%clk 0:01:45.9]} 33. Rc2 {[%clk
0:00:44.8]} 33... Re6 {[%clk 0:01:44.2]} 34. Rc8+ {[%clk 0:00:41.9]} 34... Kf7
{[%clk 0:01:43.6]} 35. Rc7+ {[%clk 0:00:41.7]} 35... Kg6 {[%clk 0:01:42.3]} 36.
Rb7 {[%clk 0:00:41.2]} 36... f4 {[%clk 0:01:42]} 37. Rxb6 {[%clk 0:00:40.2]}
37... Rxb6 {[%clk 0:01:40.5]} 38. Nxb6 {[%clk 0:00:39.6]} 38... f3 {[%clk
0:01:40.7]} 39. Nxd5 {[%clk 0:00:38.6]} 1-0

[Event "*** SCC Grand Prix: Titled Tuesday Blitz"]
[Site "Chess.com"]
[Date "2020.08.04"]
[Round "6"]
[White "Zarikovs1999"]
[Black "Machidon"]
[Result "0-1"]
[WhiteElo "2380"]
[BlackElo "2514"]
[TimeControl "180+1"]
[EndTime "14:48:50 PDT"]
[Termination "Machidon won on time"]

1. e4 {[%clk 0:02:05.3]} 1... c6 {[%clk 0:02:52.2]} 2. d4 {[%clk 0:02:05]} 2...
d5 {[%clk 0:02:53.1]} 3. Nc3 {[%clk 0:02:05.3]} 3... dxe4 {[%clk 0:02:53]} 4.
Nxe4 {[%clk 0:02:06.2]} 4... Bf5 {[%clk 0:02:53.5]} 5. Ng3 {[%clk 0:02:05]} 5...
Bg6 {[%clk 0:02:53.9]} 6. h4 {[%clk 0:02:05.5]} 6... h6 {[%clk 0:02:54]} 7. Nf3
{[%clk 0:02:05.7]} 7... Nd7 {[%clk 0:02:52.8]} 8. h5 {[%clk 0:02:05.8]} 8... Bh7
{[%clk 0:02:53.4]} 9. Bd3 {[%clk 0:02:06.4]} 9... Bxd3 {[%clk 0:02:53.7]} 10.
Qxd3 {[%clk 0:02:07.3]} 10... e6 {[%clk 0:02:53.9]} 11. Bd2 {[%clk 0:02:07.5]}
11... Ngf6 {[%clk 0:02:53.2]} 12. O-O-O {[%clk 0:02:07.9]} 12... Qc7 {[%clk
0:02:52.1]} 13. Kb1 {[%clk 0:02:07.9]} 13... Bd6 {[%clk 0:02:51.2]} 14. Ne4
{[%clk 0:02:08.4]} 14... Nxe4 {[%clk 0:02:51.6]} 15. Qe3 {[%clk 0:02:09.3]}
15... O-O-O {[%clk 0:02:52.2]} 16. Qxe4 {[%clk 0:02:09.3]} 16... c5 {[%clk
0:02:52.1]} 17. dxc5 {[%clk 0:01:27.1]} 17... Bxc5 {[%clk 0:02:32.4]} 18. Bf4
{[%clk 0:01:19.9]} 18... Qb6 {[%clk 0:02:32.3]} 19. Bh2 {[%clk 0:01:10.1]} 19...
Bxf2 {[%clk 0:01:59.5]} 20. Qf4 {[%clk 0:00:47]} 20... f6 {[%clk 0:01:59.2]} 21.
Rxd7 {[%clk 0:00:40.9]} 21... Kxd7 {[%clk 0:02:00]} 22. Qa4+ {[%clk 0:00:14.1]}
22... Ke7 {[%clk 0:01:59.3]} 23. Bf4 {[%clk 0:00:07.4]} 23... Rd7 {[%clk
0:01:57.6]} 24. a3 {[%clk 0:00:05.7]} 24... Rhd8 {[%clk 0:01:57.5]} 25. Ka2
{[%clk 0:00:06.1]} 25... Rd4 {[%clk 0:01:52.7]} 26. Nxd4 {[%clk 0:00:05.2]}
26... Rxd4 {[%clk 0:01:53.6]} 27. Bd6+ {[%clk 0:00:02.6]} 27... Rxd6 {[%clk
0:01:52.2]} 28. Qg4 {[%clk 0:00:01.7]} 28... Kf8 {[%clk 0:01:49.4]} 0-1

[Event "*** SCC Grand Prix: Titled Tuesday Blitz"]
[Site "Chess.com"]
[Date "2020.08.04"]
[Round "6"]
[White "Rud_Makarian"]
[Black "Slovak_fighter2000"]
[Result "1-0"]
[WhiteElo "2654"]
[BlackElo "2453"]
[TimeControl "180+1"]
[EndTime "14:48:57 PDT"]
[Termination "Rud_Makarian won by resignation"]

1. e4 {[%clk 0:03:00.9]} 1... e6 {[%clk 0:03:00]} 2. d4 {[%clk 0:03:00.8]} 2...
d5 {[%clk 0:03:00.2]} 3. Nc3 {[%clk 0:03:01.7]} 3... Nf6 {[%clk 0:02:58.8]} 4.
e5 {[%clk 0:03:00.9]} 4... Nfd7 {[%clk 0:02:59]} 5. f4 {[%clk 0:03:01.5]} 5...
c5 {[%clk 0:02:59.2]} 6. Nf3 {[%clk 0:03:02.4]} 6... Nc6 {[%clk 0:02:59.6]} 7.
Be3 {[%clk 0:03:02.1]} 7... Be7 {[%clk 0:02:59.7]} 8. a3 {[%clk 0:03:01.9]} 8...
a6 {[%clk 0:02:58.3]} 9. dxc5 {[%clk 0:03:00.4]} 9... Bxc5 {[%clk 0:02:58.1]}
10. Bxc5 {[%clk 0:02:56.7]} 10... Nxc5 {[%clk 0:02:59]} 11. b4 {[%clk
0:02:56.6]} 11... Nd7 {[%clk 0:02:57.7]} 12. Bd3 {[%clk 0:02:57]} 12... f6
{[%clk 0:02:37.3]} 13. O-O {[%clk 0:02:26.5]} 13... O-O {[%clk 0:02:30.2]} 14.
Qe2 {[%clk 0:02:04.3]} 14... fxe5 {[%clk 0:02:24.5]} 15. Nxe5 {[%clk 0:01:37.9]}
15... Ndxe5 {[%clk 0:02:15.8]} 16. fxe5 {[%clk 0:01:38.8]} 16... Rxf1+ {[%clk
0:01:54.1]} 17. Rxf1 {[%clk 0:01:39.7]} 17... Qe7 {[%clk 0:01:40.9]} 18. Qh5
{[%clk 0:01:30.6]} 18... g6 {[%clk 0:01:24.5]} 19. Bxg6 {[%clk 0:01:29.7]} 19...
hxg6 {[%clk 0:01:18.8]} 20. Qxg6+ {[%clk 0:01:28.9]} 20... Qg7 {[%clk
0:01:18.5]} 21. Qe8+ {[%clk 0:01:27.7]} 21... Kh7 {[%clk 0:01:18.7]} 22. Rf7
{[%clk 0:01:06.1]} 22... Nxe5 {[%clk 0:01:15.8]} 23. Rxg7+ {[%clk 0:01:04.4]}
23... Kxg7 {[%clk 0:01:16.7]} 24. Na4 {[%clk 0:01:01.1]} 24... Nd7 {[%clk
0:00:48]} 25. Qxe6 {[%clk 0:00:58.9]} 25... Nf6 {[%clk 0:00:45.9]} 26. Qe7+
{[%clk 0:00:57.8]} 26... Kg6 {[%clk 0:00:45.3]} 27. Nb6 {[%clk 0:00:57.7]} 27...
Rb8 {[%clk 0:00:45.5]} 28. Qc7 {[%clk 0:00:56.8]} 1-0